fUSD/lending_fUSD_20250101
["ID","MTS","AMOUNT","RATE_DAILY","PERIOD"]
[347343433,1735714238675,-1943.15,0.00011035,2]
[347343435,1735714238684,-500.0,0.00011035,2]
[347343437,1735714238693,-940.91,0.00011035,2]
[347343439,1735714238702,-672.83,0.00011035,2]
[347343441,1735714238711,-500.0,0.00011035,2]
[347343443,1735714238720,-635.21049353,0.00011035,2]
[347343444,1735714238729,-1235.98,0.00011035,2]
[347343445,1735714238738,-500.0,0.00011035,2]
[347343446,1735714238747,-1736.15,0.00011035,2]
[347343447,1735714238756,-500.0,0.00011035,2]
[347343448,1735714238767,-447.58773546,0.00011035,2]
[347343449,1735714238776,-2881.21,0.00011035,2]
[347343450,1735714238785,-2526.37,0.00011035,2]
[347343451,1735714238794,-500.0,0.00011035,2]
[347343452,1735714238803,-1289.03,0.00011035,2]
[347343453,1735714238811,-610.05688433,0.00011035,2]
[347343454,1735714238821,-1326.82,0.00011035,2]
[347343455,1735714238830,-957.16,0.00011035,2]
[347343456,1735714238839,-3309.69,0.00011035,2]
[347343457,1735714238848,-538.05,0.00011035,2]
[347343458,1735714238857,-533.57,0.00011035,2]
[347343459,1735714238866,-500.0,0.00011035,2]
[347343460,1735714238875,-3003.05,0.00011035,2]
[347343461,1735714238884,-500.0,0.00011035,2]
[347343462,1735714238894,-803.57,0.00011035,2]
[347343463,1735714238903,-732.31,0.00011035,2]
[347343464,1735714238912,-603.79,0.00011035,2]
[347343465,1735714238921,-500.0,0.00011035,2]
[347343466,1735714238930,-500.0,0.00011035,2]
[347343467,1735714238940,-500.0,0.00011035,2]
[347343468,1735714238949,-657.6,0.00011035,2]
[347343469,1735714238958,-959.95,0.00011035,2]
[347343470,1735714238967,-550.83,0.00011035,2]
[347343471,1735714238977,-500.0,0.00011035,2]
[347343472,1735714238988,-500.0,0.00011035,2]
[347343473,1735714238997,-500.0,0.00011035,2]
[347343474,1735714239006,-1805.81,0.00011035,2]
[347343475,1735714239017,-500.0,0.00011035,2]
[347343476,1735714239027,-500.0,0.00011035,2]
[347343477,1735714239036,-3000.76,0.00011035,2]
[347343478,1735714239045,-809.56,0.00011035,2]
[347343479,1735714239055,-2900.119945,0.00011035,2]
[347343480,1735714239064,-500.0,0.00011035,2]
[347343481,1735714239073,-1148.58,0.00011035,2]
[347343482,1735714239082,-500.0,0.00011035,2]
[347343483,1735714239091,-1830.47,0.00011035,2]
[347343484,1735714239101,-500.0,0.00011035,2]
[347343485,1735714239110,-1632.4,0.00011035,2]
[347343486,1735714239119,-500.0,0.00011035,2]
[347343487,1735714239129,-3999.27,0.00011035,2]
[347343488,1735714239138,-1580.97,0.00011035,2]
[347343489,1735714239147,-2080.358912,0.00011035,2]
[347343490,1735714239156,-1494.65,0.00011035,2]
[347343491,1735714239165,-500.0,0.00011035,2]
[347343492,1735714239174,-765.0,0.00011035,2]
[347343493,1735714239183,-500.0,0.00011035,2]
[347343494,1735714239192,-155.317428,0.00011035,2]
[347343495,1735714239202,-500.0,0.00011035,2]
[347343496,1735714239211,-1164.91,0.00011035,2]
[347343497,1735714239220,-2459.58,0.00011035,2]
[347343498,1735714239229,-158.523011,0.00011035,2]
[347343499,1735714239238,-637.06,0.00011035,2]
[347343500,1735714239247,-500.0,0.00011035,2]
[347343501,1735714239257,-840.89,0.00011035,2]
[347343502,1735714239266,-741.34,0.00011035,2]
[347343503,1735714239275,-500.0,0.00011035,2]
[347343504,1735714239284,-926.25,0.00011035,2]
[347343505,1735714239294,-1383.27,0.00011035,2]
[347343506,1735714239303,-500.0,0.00011035,2]
[347343507,1735714239312,-3897.82,0.00011035,2]
[347343508,1735714239322,-500.0,0.00011035,2]
[347343509,1735714239331,-1433.31,0.00011035,2]
[347343510,1735714239340,-500.0,0.00011035,2]
[347343511,1735714239349,-877.6,0.00011035,2]
[347343512,1735714239358,-578.68,0.00011035,2]
[347343513,1735714239368,-2215.96,0.00011035,2]
[347343514,1735714239378,-500.0,0.00011035,2]
[347343515,1735714239387,-1662.65,0.00011035,2]
[347343516,1735714239396,-500.0,0.00011035,2]
[347343517,1735714239406,-500.0,0.00011035,2]
[347343518,1735714239415,-1239.38,0.00011035,2]
[347343519,1735714239425,-500.0,0.00011035,2]
[347343520,1735714239435,-500.0,0.00011035,2]
[347343521,1735714239444,-2108.09,0.00011035,2]
[347343522,1735714239454,-2779.09,0.00011035,2]
[347343523,1735714239464,-3934.16,0.00011035,2]
[347343524,1735714239476,-500.0,0.00011035,2]
[347343525,1735714239485,-500.0,0.00011035,2]
[347343526,1735714239494,-219.41302927,0.00011035,2]
[347343527,1735714239503,-655.93,0.00011035,2]
[347343528,1735714239513,-201.60683354,0.00011035,2]
[347343529,1735714239523,-1656.08,0.00011035,2]
[347343530,1735714239534,-500.0,0.00011035,2]
[347343531,1735714239544,-500.0,0.00011035,2]
[347343532,1735714239553,-2203.76,0.00011035,2]
[347343533,1735714239563,-1430.6,0.00011035,2]
[347343534,1735714239574,-500.0,0.00011035,2]
[347343535,1735714239584,-1308.54,0.00011035,2]
[347343536,1735714239593,-512.65,0.00011035,2]
[347343537,1735714239602,-558.6,0.00011035,2]
[347343538,1735714239612,-941.05,0.00011035,2]
[347343539,1735714239621,-2965.74,0.00011035,2]
[347343540,1735714239631,-6576.63,0.00011035,2]
[347343541,1735714239641,-500.0,0.00011035,2]
[347343542,1735714239650,-500.0,0.00011035,2]
[347343543,1735714239660,-500.0,0.00011035,2]
[347343544,1735714239670,-500.0,0.00011035,2]
[347343545,1735714239679,-587.84,0.00011035,2]
[347343546,1735714239688,-1456.07,0.00011035,2]
[347343547,1735714239698,-1466.44,0.00011035,2]
[347343548,1735714239709,-1208.12,0.00011035,2]
[347343549,1735714239718,-500.0,0.00011035,2]
[347343550,1735714239728,-784.64,0.00011035,2]
[347343551,1735714239738,-1165.76,0.00011035,2]
[347343552,1735714239747,-500.0,0.00011035,2]
[347343553,1735714239756,-500.0,0.00011035,2]
[347343554,1735714239766,-1887.01,0.00011035,2]
[347343555,1735714239775,-673.04,0.00011035,2]
[347343556,1735714239784,-3167.13,0.00011035,2]
[347343557,1735714239793,-500.0,0.00011035,2]
[347343558,1735714239803,-500.0,0.00011035,2]
[347343559,1735714239812,-827.95,0.00011035,2]
[347343560,1735714239822,-551.56,0.00011035,2]
[347343561,1735714239831,-1395.36,0.00011035,2]
[347343562,1735714239840,-500.0,0.00011035,2]
[347343563,1735714239850,-1676.58,0.00011035,2]
[347343564,1735714239859,-1184.54,0.00011035,2]
[347343565,1735714239869,-581.62,0.00011035,2]
[347343566,1735714239878,-500.0,0.00011035,2]
[347343567,1735714239888,-4034.06,0.00011035,2]
[347343568,1735714239898,-538.71,0.00011035,2]
[347343569,1735714239907,-986.77,0.00011035,2]
[347343570,1735714239917,-500.0,0.00011035,2]
[347343571,1735714239926,-1581.98,0.00011035,2]
[347343572,1735714239936,-500.0,0.00011035,2]
[347343573,1735714239946,-500.0,0.00011035,2]
[347343574,1735714239957,-3209.7,0.00011035,2]
[347343575,1735714239966,-500.0,0.00011035,2]
[347343576,1735714239976,-500.0,0.00011035,2]
[347343577,1735714239986,-500.0,0.00011035,2]
[347343578,1735714239995,-5629.86,0.00011035,2]
[347343579,1735714240004,-500.0,0.00011035,2]
[347343580,1735714240013,-500.0,0.00011035,2]
[347343581,1735714240022,-500.0,0.00011035,2]
[347343582,1735714240032,-767.39,0.00011035,2]
[347343583,1735714240042,-924.29,0.00011035,2]
[347343584,1735714240051,-2598.45,0.00011035,2]
[347343585,1735714240061,-830.36,0.00011035,2]
[347343586,1735714240071,-897.24,0.00011035,2]
[347343587,1735714240081,-1649.24,0.00011035,2]
[347343588,1735714240091,-814.67,0.00011035,2]
[347343589,1735714240100,-500.0,0.00011035,2]
[347343591,1735714240110,-2327.71,0.00011035,2]
[347343592,1735714240119,-500.0,0.00011035,2]
[347343593,1735714240129,-1154.69,0.00011035,2]
[347343594,1735714240139,-4494.96,0.00011035,2]
[347343595,1735714240148,-1418.72,0.00011035,2]
[347343596,1735714240158,-500.0,0.00011035,2]
[347343597,1735714240168,-500.0,0.00011035,2]
[347343598,1735714240177,-968.99,0.00011035,2]
[347343599,1735714240187,-500.0,0.00011035,2]
[347343601,1735714240196,-500.0,0.00011035,2]
[347343603,1735714240206,-1809.93,0.00011035,2]
[347343604,1735714240216,-592.87,0.00011035,2]
[347343605,1735714240225,-535.95,0.00011035,2]
[347343606,1735714240235,-2911.04,0.00011035,2]
[347343607,1735714240244,-500.0,0.00011035,2]
[347343608,1735714240254,-500.0,0.00011035,2]
[347343609,1735714240263,-7946.25,0.00011035,2]
[347343610,1735714240273,-500.0,0.00011035,2]
[347343611,1735714240283,-530.87,0.00011035,2]
[347343612,1735714240292,-500.0,0.00011035,2]
[347343613,1735714240302,-2186.75,0.00011035,2]
[347343614,1735714240312,-500.0,0.00011035,2]
[347343615,1735714240321,-3694.67,0.00011035,2]
[347343616,1735714240330,-2055.23,0.00011035,2]
[347343617,1735714240340,-1894.09,0.00011035,2]
[347343618,1735714240350,-500.0,0.00011035,2]
[347343619,1735714240360,-500.0,0.00011035,2]
[347343620,1735714240369,-1518.18,0.00011035,2]
[347343621,1735714240379,-500.0,0.00011035,2]
[347343622,1735714240389,-500.0,0.00011035,2]
[347343623,1735714240399,-1054.55,0.00011035,2]
[347343624,1735714240408,-7125.08,0.00011035,2]
[347343625,1735714240418,-523.03,0.00011035,2]
[347343626,1735714240427,-6644.1,0.00011035,2]
[347343627,1735714240437,-500.0,0.00011035,2]
[347343628,1735714240447,-24436.63,0.00011035,2]
[347343629,1735714240457,-777.29,0.00011035,2]
[347343630,1735714240466,-527.94344484,0.00011035,2]
[347343631,1735714240476,-3400.22,0.00011035,2]
[347343632,1735714240486,-500.0,0.00011035,2]
[347343633,1735714240495,-628.23,0.00011035,2]
[347343634,1735714240505,-2093.72,0.00011035,2]
[347343635,1735714240514,-6572.95,0.00011035,2]
[347343636,1735714240526,-500.0,0.00011035,2]
[347343637,1735714240535,-1044.66,0.00011035,2]
[347343638,1735714240545,-500.0,0.00011035,2]
[347343639,1735714240554,-500.0,0.00011035,2]
[347343640,1735714240564,-3035.37,0.00011035,2]
[347343641,1735714240574,-2431.44,0.00011035,2]
[347343642,1735714240584,-4358.21,0.00011035,2]
[347343643,1735714240594,-500.0,0.00011035,2]
[347343644,1735714240604,-500.0,0.00011035,2]
[347343645,1735714240614,-1034.09,0.00011035,2]
[347343646,1735714240624,-1694.95,0.00011035,2]
[347343647,1735714240634,-500.0,0.00011035,2]
[347343648,1735714240643,-500.0,0.00011035,2]
[347343649,1735714240653,-500.0,0.00011035,2]
[347343650,1735714240664,-4485.04,0.00011035,2]
[347343651,1735714240674,-647.02,0.00011035,2]
[347343652,1735714240683,-604.1,0.00011035,2]
[347343653,1735714240693,-500.0,0.00011035,2]
[347343654,1735714240702,-500.0,0.00011035,2]
[347343655,1735714240711,-150.64616429,0.00011035,2]
[347343656,1735714240721,-582.78,0.00011035,2]
[347343657,1735714240730,-500.0,0.00011035,2]
[347343658,1735714240740,-1951.43,0.00011035,2]
[347343659,1735714240749,-3407.47,0.00011035,2]
[347343660,1735714240759,-3393.79,0.00011035,2]
[347343661,1735714240770,-1551.1,0.00011035,2]
[347343662,1735714240779,-500.0,0.00011035,2]
[347343663,1735714240789,-500.0,0.00011035,2]
[347343664,1735714240798,-500.0,0.00011035,2]
[347343665,1735714240807,-500.0,0.00011035,2]
[347343666,1735714240817,-2026.95,0.00011035,2]
[347343667,1735714240826,-53.25397824,0.00011035,2]
[347343668,1735714240864,-1907.67398131,0.00011035,2]
[347343669,1735714240875,-731.55204045,0.00011035,2]
[347343670,1735714240885,-509.06,0.00011035,2]
[347343671,1735714240894,-623.79,0.00011035,2]
[347343672,1735714240903,-500.0,0.00011035,2]
[347343673,1735714240912,-500.0,0.00011035,2]
[347343674,1735714240922,-500.0,0.00011035,2]
[347343675,1735714240931,-1095.1303954,0.00011035,2]
[347343676,1735714241000,-2988.7096046,0.00011035,2]
[347343677,1735714241010,-500.0,0.00011035,2]
[347343678,1735714241019,-1681.39,0.00011035,2]
[347343679,1735714241029,-2676.95,0.00011035,2]
[347343680,1735714241038,-500.0,0.00011035,2]
[347343681,1735714241047,-2615.03,0.00011035,2]
[347343682,1735714241056,-16787.38,0.00011035,2]
[347343683,1735714241066,-864.69,0.00011035,2]
[347343684,1735714241075,-500.0,0.00011035,2]
[347343685,1735714241084,-963.05,0.00011035,2]
[347343686,1735714241094,-1041.41,0.00011035,2]
[347343687,1735714241103,-9197.85,0.00011035,2]
[347343688,1735714241112,-500.0,0.00011035,2]
[347343689,1735714241122,-500.0,0.00011035,2]
[347343690,1735714241131,-5521.76,0.00011035,2]
[347343691,1735714241141,-500.0,0.00011035,2]
[347343692,1735714241150,-500.0,0.00011035,2]
[347343693,1735714241159,-1139.6,0.00011035,2]
[347343694,1735714241168,-549.8,0.00011035,2]
[347343695,1735714241177,-500.0,0.00011035,2]
[347343696,1735714241186,-2958.64260483,0.00011035,2]
[347343697,1735714241198,-282.55999991,0.00011035,2]
[347343698,1735714241744,-269.04739526,0.00011035,2]
[347343699,1735714241753,-1552.3,0.00011035,2]
[347343700,1735714241763,-207.40956062,0.00011035,2]
[347343701,1735714241985,-1263.51869751,0.00011035,2]
[347343702,1735714242719,-13219.73130249,0.00011035,2]
[347343703,1735714242728,-1455.46,0.00011035,2]
[347343704,1735714242737,-500.0,0.00011035,2]
[347343705,1735714242747,-16701.91,0.00011035,2]
[347343706,1735714242756,-500.0,0.00011035,2]
[347343707,1735714242765,-1981.02,0.00011035,2]
[347343708,1735714242775,-500.0,0.00011035,2]
[347343709,1735714242784,-1094.94,0.00011035,2]
[347343710,1735714242793,-2514.48,0.00011035,2]
[347343711,1735714242802,-500.0,0.00011035,2]
[347343712,1735714242811,-2316.46,0.00011035,2]
[347343713,1735714242820,-922.05,0.00011035,2]
[347343714,1735714242829,-3488.4,0.00011035,2]
[347343715,1735714242838,-500.0,0.00011035,2]
[347343716,1735714242847,-2366.94,0.00011035,2]
[347343717,1735714242856,-500.0,0.00011035,2]
[347343718,1735714242865,-11417.68,0.00011035,2]
[347343719,1735714242874,-2064.2,0.00011035,2]
[347343720,1735714242883,-841.3,0.00011035,2]
[347343721,1735714242892,-1003.25,0.00011035,2]
[347343722,1735714242902,-500.0,0.00011035,2]
[347343723,1735714242911,-10135.83687806,0.00011035,2]
[347343724,1735714242922,-1765.9359,0.00011036,2]
[347343725,1735714242931,-295.156,0.00011036,2]
[347343726,1735714242940,-506.22,0.00011036,2]
[347343727,1735714242949,-493.73,0.00011036,2]
[347343728,1735714242959,-494.26,0.00011036,2]
[347343729,1735714242968,-492.93,0.00011036,2]
[347343730,1735714242977,-500.0,0.00011036,2]
[347343731,1735714242986,-500.0,0.00011036,2]
[347343732,1735714242994,-500.0,0.00011036,2]
[347343733,1735714243004,-903.99,0.00011036,2]
[347343734,1735714243013,-500.0,0.00011036,2]
[347343735,1735714243022,-712.22,0.00011036,2]
[347343736,1735714243031,-500.0,0.00011036,2]
[347343737,1735714243040,-717.24,0.00011036,2]
[347343738,1735714243049,-646.73,0.00011036,2]
[347343739,1735714243058,-1094.04,0.00011036,2]
[347343740,1735714243067,-500.0,0.00011036,2]
[347343742,1735714243076,-500.0,0.00011036,2]
[347343743,1735714243085,-500.0,0.00011036,2]
[347343744,1735714243093,-500.0,0.00011036,2]
[347343745,1735714243102,-500.0,0.00011036,2]
[347343747,1735714243111,-500.0,0.00011036,2]
[347343749,1735714243120,-500.0,0.00011036,2]
[347343752,1735714243128,-500.0,0.00011036,2]
[347343754,1735714243137,-1174.58,0.00011036,2]
[347343756,1735714243146,-670.01,0.00011036,2]
[347343758,1735714243155,-500.0,0.00011036,2]
[347343759,1735714243164,-500.0,0.00011036,2]
[347343761,1735714243173,-702.02,0.00011036,2]
[347343763,1735714243182,-541.88,0.00011036,2]
[347343764,1735714243191,-1195.57,0.00011036,2]
[347343765,1735714243199,-1407.66,0.00011036,2]
[347343766,1735714243209,-500.0,0.00011036,2]
[347343767,1735714243218,-929.92,0.00011036,2]
[347343768,1735714243227,-626.95,0.00011036,2]
[347343769,1735714243236,-1117.47,0.00011036,2]
[347343770,1735714243246,-918.21,0.00011036,2]
[347343771,1735714243255,-500.0,0.00011036,2]
[347343772,1735714243265,-2071.12,0.00011036,2]
[347343773,1735714243275,-1494.29,0.00011036,2]
[347343774,1735714243284,-500.0,0.00011036,2]
[347343775,1735714243294,-2257.86,0.00011036,2]
[347343776,1735714243304,-638.38,0.00011036,2]
[347343777,1735714243314,-500.0,0.00011036,2]
[347343778,1735714243323,-500.0,0.00011036,2]
[347343779,1735714243332,-500.0,0.00011036,2]
[347343780,1735714243343,-734.45,0.00011036,2]
[347343781,1735714243352,-628.08,0.00011036,2]
[347343782,1735714243362,-500.0,0.00011036,2]
[347343783,1735714243371,-616.23,0.00011036,2]
[347343784,1735714243380,-638.77,0.00011036,2]
[347343785,1735714243389,-500.0,0.00011036,2]
[347343786,1735714243398,-500.0,0.00011036,2]
[347343787,1735714243407,-500.0,0.00011036,2]
[347343788,1735714243416,-500.0,0.00011036,2]
[347343789,1735714243425,-1413.22,0.00011036,2]
[347343790,1735714243435,-500.0,0.00011036,2]
[347343791,1735714243444,-500.0,0.00011036,2]
[347343792,1735714243453,-800.86,0.00011036,2]
[347343793,1735714243463,-500.0,0.00011036,2]
[347343794,1735714243472,-500.0,0.00011036,2]
[347343795,1735714243482,-528.28,0.00011036,2]
[347343796,1735714243491,-517.68,0.00011036,2]
[347343797,1735714243499,-1018.09,0.00011036,2]
[347343798,1735714243508,-744.98,0.00011036,2]
[347343799,1735714243517,-1160.79,0.00011036,2]
[347343800,1735714243530,-858.95,0.00011036,2]
[347343801,1735714243539,-500.0,0.00011036,2]
[347343802,1735714243550,-500.0,0.00011036,2]
[347343803,1735714243561,-500.0,0.00011036,2]
[347343804,1735714243571,-909.73,0.00011036,2]
[347343805,1735714243580,-935.26,0.00011036,2]
[347343806,1735714243589,-1173.36,0.00011036,2]
[347343807,1735714243598,-1037.26,0.00011036,2]
[347343808,1735714243607,-602.11,0.00011036,2]
[347343809,1735714243616,-706.57,0.00011036,2]
[347343810,1735714243625,-3226.755,0.00011036,2]
[347343811,1735714243635,-500.0,0.00011036,2]
[347343812,1735714243643,-741.96,0.00011036,2]
[347343813,1735714243653,-1995.68,0.00011036,2]
[347343814,1735714243663,-500.0,0.00011036,2]
[347343815,1735714243672,-500.0,0.00011036,2]
[347343816,1735714243681,-1202.59,0.00011036,2]
[347343817,1735714243690,-500.0,0.00011036,2]
[347343818,1735714243699,-683.29,0.00011036,2]
[347343819,1735714243710,-500.0,0.00011036,2]
[347343820,1735714243719,-1327.27,0.00011036,2]
[347343822,1735714243728,-500.0,0.00011036,2]
[347343824,1735714243737,-1074.13,0.00011036,2]
[347343826,1735714243746,-500.0,0.00011036,2]
[347343828,1735714243755,-500.0,0.00011036,2]
[347343830,1735714243764,-500.0,0.00011036,2]
[347343832,1735714243774,-500.0,0.00011036,2]
[347343834,1735714243783,-500.0,0.00011036,2]
[347343836,1735714243792,-500.0,0.00011036,2]
[347343837,1735714243801,-500.0,0.00011036,2]
[347343838,1735714243810,-500.0,0.00011036,2]
[347343839,1735714243819,-500.0,0.00011036,2]
[347343841,1735714243828,-500.0,0.00011036,2]
[347343843,1735714243837,-1737.1,0.00011036,2]
[347343845,1735714243845,-631.17,0.00011036,2]
[347343847,1735714243854,-704.17,0.00011036,2]
[347343849,1735714243863,-1279.01,0.00011036,2]
[347343851,1735714243872,-500.0,0.00011036,2]
[347343853,1735714243882,-500.0,0.00011036,2]
[347343854,1735714243890,-500.0,0.00011036,2]
[347343856,1735714243900,-500.0,0.00011036,2]
[347343859,1735714243910,-500.0,0.00011036,2]
[347343861,1735714243919,-850.81,0.00011036,2]
[347343862,1735714243928,-1091.69,0.00011036,2]
[347343864,1735714243937,-500.0,0.00011036,2]
[347343866,1735714243947,-698.69,0.00011036,2]
[347343868,1735714243956,-1903.78,0.00011036,2]
[347343870,1735714243966,-500.0,0.00011036,2]
[347343873,1735714243976,-500.0,0.00011036,2]
[347343874,1735714243985,-1281.79,0.00011036,2]
[347343876,1735714243994,-840.8,0.00011036,2]
[347343878,1735714244003,-500.0,0.00011036,2]
[347343880,1735714244013,-500.0,0.00011036,2]
[347343882,1735714244022,-1026.21,0.00011036,2]
[347343884,1735714244031,-500.0,0.00011036,2]
[347343886,1735714244040,-500.0,0.00011036,2]
[347343888,1735714244050,-500.0,0.00011036,2]
[347343890,1735714244059,-500.0,0.00011036,2]
[347343892,1735714244069,-866.39,0.00011036,2]
[347343894,1735714244079,-500.0,0.00011036,2]
[347343896,1735714244087,-769.71,0.00011036,2]
[347343898,1735714244096,-500.0,0.00011036,2]
[347343900,1735714244105,-560.12,0.00011036,2]
[347343902,1735714244115,-1868.5,0.00011036,2]
[347343904,1735714244124,-500.0,0.00011036,2]
[347343906,1735714244133,-500.0,0.00011036,2]
[347343908,1735714244142,-500.0,0.00011036,2]
[347343910,1735714244151,-500.0,0.00011036,2]
[347343912,1735714244161,-688.38,0.00011036,2]
[347343914,1735714244170,-825.65,0.00011036,2]
[347343916,1735714244180,-500.0,0.00011036,2]
[347343918,1735714244189,-452.7249973,0.00011036,2]
[347343920,1735714244200,-797.51,0.00011036,2]
[347343922,1735714244210,-500.0,0.00011036,2]
[347343924,1735714244220,-2823.16,0.00011036,2]
[347343926,1735714244229,-740.2,0.00011036,2]
[347343927,1735714244238,-500.0,0.00011036,2]
[347343929,1735714244248,-662.9,0.00011036,2]
[347343931,1735714244257,-1168.95,0.00011036,2]
[347343933,1735714244266,-622.71,0.00011036,2]
[347343935,1735714244276,-705.54,0.00011036,2]
[347343937,1735714244284,-500.0,0.00011036,2]
[347343939,1735714244294,-3725.54,0.00011036,2]
[347343940,1735714244303,-584.29,0.00011036,2]
[347343942,1735714244312,-500.0,0.00011036,2]
[347343944,1735714244321,-500.0,0.00011036,2]
[347343946,1735714244330,-500.0,0.00011036,2]
[347343948,1735714244339,-3836.95,0.00011036,2]
[347343950,1735714244348,-2026.48,0.00011036,2]
[347343952,1735714244357,-1101.07,0.00011036,2]
[347343954,1735714244367,-500.0,0.00011036,2]
[347343956,1735714244377,-1135.66,0.00011036,2]
[347343958,1735714244387,-500.0,0.00011036,2]
[347343960,1735714244396,-2428.54,0.00011036,2]
[347343962,1735714244405,-500.0,0.00011036,2]
[347343964,1735714244415,-1016.74,0.00011036,2]
[347343966,1735714244424,-500.0,0.00011036,2]
[347343968,1735714244434,-500.0,0.00011036,2]
[347343969,1735714244443,-716.65,0.00011036,2]
[347343970,1735714244453,-3850.55,0.00011036,2]
[347343971,1735714244462,-500.0,0.00011036,2]
[347343972,1735714244471,-500.0,0.00011036,2]
[347343973,1735714244481,-500.0,0.00011036,2]
[347343974,1735714244491,-881.97,0.00011036,2]
[347343975,1735714244501,-500.0,0.00011036,2]
[347343976,1735714244510,-633.01610668,0.00011036,2]
[347343977,1735714244520,-500.0,0.00011036,2]
[347343978,1735714244533,-500.0,0.00011036,2]
[347343979,1735714244542,-500.0,0.00011036,2]
[347343980,1735714244552,-687.13,0.00011036,2]
[347343981,1735714244560,-1649.46,0.00011036,2]
[347343982,1735714244571,-876.24,0.00011036,2]
[347343983,1735714244580,-500.0,0.00011036,2]
[347343984,1735714244589,-2422.67,0.00011036,2]
[347343985,1735714244599,-500.0,0.00011036,2]
[347343987,1735714244608,-500.0,0.00011036,2]
[347343989,1735714244617,-908.9,0.00011036,2]
[347343991,1735714244626,-1018.91,0.00011036,2]
[347343993,1735714244635,-500.0,0.00011036,2]
[347343995,1735714244644,-500.0,0.00011036,2]
[347343997,1735714244653,-500.0,0.00011036,2]
[347343999,1735714244662,-630.34,0.00011036,2]
[347344001,1735714244671,-550.26,0.00011036,2]
[347344003,1735714244681,-631.89,0.00011036,2]
[347344005,1735714244691,-1263.54,0.00011036,2]
[347344007,1735714244700,-668.99,0.00011036,2]
[347344009,1735714244711,-500.0,0.00011036,2]
[347344011,1735714244720,-500.0,0.00011036,2]
[347344013,1735714244729,-2143.51,0.00011036,2]
[347344015,1735714244738,-561.56,0.00011036,2]
[347344017,1735714244748,-500.0,0.00011036,2]
[347344019,1735714244757,-500.0,0.00011036,2]
[347344021,1735714244766,-2664.6,0.00011036,2]
[347344023,1735714244776,-1301.18,0.00011036,2]
[347344025,1735714244785,-2745.27,0.00011036,2]
[347344026,1735714244793,-2071.66,0.00011036,2]
[347344028,1735714244803,-500.0,0.00011036,2]
[347344030,1735714244811,-2259.91,0.00011036,2]
[347344032,1735714244821,-500.0,0.00011036,2]
[347344034,1735714244830,-2206.28,0.00011036,2]
[347344036,1735714244839,-500.0,0.00011036,2]
[347344038,1735714244848,-500.0,0.00011036,2]
[347344040,1735714244857,-500.0,0.00011036,2]
[347344042,1735714244867,-1244.17,0.00011036,2]
[347344044,1735714244876,-644.3,0.00011036,2]
[347344046,1735714244885,-501.01,0.00011036,2]
[347344048,1735714244894,-4106.99,0.00011036,2]
[347344050,1735714244904,-760.37,0.00011036,2]
[347344052,1735714244913,-500.0,0.00011036,2]
[347344054,1735714244922,-2512.71,0.00011036,2]
[347344056,1735714244932,-1939.92,0.00011036,2]